[Event "Panevezys ELITE Open 2021"]
[Site "Panevezys, Lithuania"]
[Date "2021.08.04"]
[Round "7.10"]
[White "Carlsson, Ludvig"]
[Black "Voroblievas, Arturas"]
[Result "1-0"]
[WhiteElo "2258"]
[BlackElo "1699"]
[PlyCount "63"]
[EventDate "2021.??.??"]
[TimeControl "90/40+30:0"]
[WhiteClock "1:00:24"]
[BlackClock "0:14:31"]

1. e4 {[%emt 0:03:03]} e5 {[%emt 0:00:10]} 2. f4 {[%emt 0:00:06]} Bc5 {[%emt 0:
00:21]} 3. Nf3 {[%emt 0:00:07]} d6 {[%emt 0:00:06]} 4. c3 {[%emt 0:00:09]} Nf6
{[%emt 0:03:02]} 5. d4 {[%emt 0:00:13]} exd4 {[%emt 0:03:42]} 6. cxd4 {[%emt 0:
00:06]} Bb6 {[%emt 0:00:54]} 7. Nc3 {[%emt 0:02:26]} O-O {[%emt 0:00:51]} 8. e5
{[%emt 0:00:49]} dxe5 {[%emt 0:01:31]} 9. fxe5 {[%emt 0:00:20]} Nd5 {[%emt 0:
01:41]} 10. Bc4 {[%emt 0:02:01]} c6 {[%emt 0:03:39]} 11. Qb3 {[%emt 0:07:46]}
Bg4 {[%emt 0:06:23]} 12. Bg5 {[%emt 0:09:34]} Qd7 {[%emt 0:00:28]} 13. O-O-O {
[%emt 0:05:53]} Be6 {[%emt 0:18:45]} 14. Ne4 {[%emt 0:01:37]} Bd8 {[%emt 0:10:
44]} 15. Nc5 {[%emt 0:03:42]} Bxg5+ {[%emt 0:02:08]} 16. Nxg5 {[%emt 0:00:04]}
Qe7 {[%emt 0:02:59]} 17. Ngxe6 {[%emt 0:00:15]} fxe6 {[%emt 0:00:13]} 18. Qxb7
{[%emt 0:00:09]} Qg5+ {[%emt 0:04:44]} 19. Kb1 {[%emt 0:00:49]} Nb6 {[%emt 0:
14:26]} 20. Bxe6+ {[%emt 0:01:16]} Kh8 {[%emt 0:00:20]} 21. Rhf1 {[%emt 0:00:
45]} Qg6+ {[%emt 0:03:57]} 22. Ka1 {[%emt 0:00:13]} Na6 {[%emt 0:03:09]} 23.
Qxa6 {[%emt 0:00:53]} Rfb8 {[%emt 0:01:51]} 24. Qd3 {[%emt 0:00:39]} Qxg2 {
[%emt 0:02:10]} 25. Rg1 {[%emt 0:01:12]} Qf2 {[%emt 0:00:34]} 26. Qg3 {[%emt 0:
00:26]} Qxb2+ {[%emt 0:01:56]} 27. Kxb2 {[%emt 0:00:06]} Nc4+ {[%emt 0:00:15]}
28. Ka1 {[%emt 0:00:13]} Rb1+ {[%emt 0:00:21]} 29. Rxb1 {[%emt 0:00:06]} Rg8 {
[%emt 0:00:12]} 30. Qxg7+ {[%emt 0:00:07]} Rxg7 {[%emt 0:00:12]} 31. Rb8+ {
[%emt 0:00:03]} Rg8 {[%emt 0:00:02]} 32. Rgxg8# {[%emt 0:00:07]} 1-0